bitfinex-derivatives/quotes_BNBF0:USTF0_20251225
["timestamp","ask_amount","ask_price","bid_price","bid_amount"]
[1766659516158,0.70840931,837.12,835.17,2.98109633]
[1766659516459,0.70840931,837.11,835.17,2.98109633]
[1766659516655,0.88069587,837.08,835.09,2.98109633]
[1766659516956,0.70840931,837.07,835.09,2.98109633]
[1766659517155,0.88069587,837.05,835.1,2.98109633]
[1766659517354,1.58910518,837.04,835.1,2.98109633]
[1766659517554,0.70840931,837.03,835.05,2.98109633]
[1766659517858,0.70840931,837.02,835.05,2.98109633]
[1766659518159,0.70840931,837.01,835.05,2.98109633]
[1766659518359,0.70840931,837.0,835.05,2.98109633]
[1766659518658,0.70840931,836.99,835.05,2.98109633]
[1766659518956,0.70840931,836.98,835.05,2.98109633]
[1766659519155,0.70840931,836.97,835.05,2.98109633]
[1766659519358,0.70840931,836.96,835.05,2.98109633]
[1766659519659,0.70840931,836.95,835.05,2.98109633]
[1766659519958,0.70840931,836.94,835.05,2.98109633]
[1766659520158,0.70840931,836.93,835.04,2.98109633]
[1766659520358,0.70840931,836.92,835.04,2.98109633]
[1766659520559,0.70840931,836.91,835.04,2.98109633]
[1766659520758,0.70840931,836.9,835.04,2.98109633]
[1766659520958,0.70840931,836.89,835.04,2.98109633]
[1766659521155,0.70840931,836.88,835.04,2.98109633]
[1766659521359,0.70840931,836.87,835.04,2.98109633]
[1766659521655,0.70840931,836.86,835.04,2.98109633]
[1766659521860,0.70840931,836.85,835.04,2.98109633]
[1766659522060,0.70840931,836.84,835.04,2.98109633]
[1766659522255,0.70840931,836.83,835.04,2.98109633]
[1766659522460,0.70840931,836.82,835.03,2.98109633]
[1766659522761,0.70840931,836.81,835.03,2.98109633]
[1766659522958,0.70840931,836.8,835.03,2.98109633]
[1766659523259,0.70840931,836.79,835.03,2.98109633]
[1766659523459,0.70840931,836.78,835.03,2.98109633]
[1766659523755,0.88069587,837.04,835.03,2.98109633]
[1766659523960,0.70933027,837.03,835.02,2.98109633]
[1766659524162,0.70933027,837.02,835.02,2.98109633]
[1766659524356,0.70933027,837.01,835.0,2.98109633]
[1766659524661,0.70933027,837.0,835.0,2.98109633]
[1766659524862,0.70933027,836.99,835.0,2.98109633]
[1766659525061,0.70933027,836.98,835.0,2.98109633]
[1766659525261,0.70933027,836.97,835.0,2.98109633]
[1766659525462,0.70933027,836.96,834.99,2.98109633]
[1766659525762,0.70933027,836.95,834.99,2.98109633]
[1766659525962,0.70933027,836.94,834.99,2.98109633]
[1766659526160,0.70933027,836.93,834.99,2.98109633]
[1766659526362,0.70933027,836.92,834.99,2.98109633]
[1766659526563,0.70933027,836.91,834.99,2.98109633]
[1766659526763,0.70933027,836.9,834.99,2.98109633]
[1766659526963,0.70933027,836.89,835.01,2.98109633]
[1766659527161,0.70933027,836.88,835.01,2.98109633]
[1766659527365,0.70933027,836.87,835.01,2.98109633]
[1766659527565,0.70933027,836.86,835.02,2.98109633]
[1766659527761,0.70933027,836.85,835.02,2.98109633]
[1766659527960,0.70933027,836.84,835.02,2.98109633]
[1766659528160,0.70933027,836.83,835.02,2.98109633]
[1766659528364,0.70933027,836.82,835.02,2.98109633]
[1766659528663,0.70933027,836.81,835.02,2.98109633]
[1766659528859,0.70933027,836.8,835.02,2.98109633]
[1766659529058,0.70933027,836.79,835.02,2.98109633]
[1766659529263,0.70933027,836.78,835.02,2.98109633]
[1766659529462,0.88069587,837.05,835.02,2.98109633]
[1766659529661,0.70928215,837.04,835.02,2.98109633]
[1766659529864,0.70928215,837.03,835.02,2.98109633]
[1766659530067,0.70928215,837.02,835.02,2.98109633]
[1766659530366,0.70928215,837.01,835.02,2.98109633]
[1766659530566,0.70928215,837.0,835.02,2.98109633]
[1766659530767,0.70928215,836.99,835.03,2.98109633]
[1766659531066,0.70928215,836.98,835.03,2.98109633]
[1766659531267,0.70928215,836.97,835.03,2.98109633]
[1766659531465,0.70928215,836.96,835.03,2.98109633]
[1766659531663,0.70928215,836.95,835.04,2.98109633]
[1766659531866,0.70928215,836.94,835.04,2.98109633]
[1766659532068,0.70928215,836.93,835.04,2.98109633]
[1766659532267,0.70928215,836.92,835.04,2.98109633]
[1766659532467,0.70928215,836.91,835.04,2.98109633]
[1766659532767,0.70928215,836.9,835.04,2.98109633]
[1766659532966,0.70928215,836.89,835.04,2.98109633]
[1766659533267,0.20796233,837.22,835.04,2.98109633]
[1766659533268,0.70928215,836.88,835.04,2.98109633]
[1766659533468,0.70928215,836.87,835.04,2.98109633]
[1766659533765,0.70928215,836.86,835.04,2.98109633]
[1766659533970,0.70928215,836.85,835.04,2.98109633]
[1766659534169,0.70928215,836.84,835.04,2.98109633]
[1766659534468,0.70928215,836.83,835.05,2.98109633]
[1766659534668,0.70928215,836.82,835.05,2.98109633]
[1766659534869,0.70928215,836.81,835.05,2.98109633]
[1766659535069,0.70928215,836.8,835.05,2.98109633]
[1766659535271,0.70928215,836.79,835.05,2.98109633]
[1766659535470,0.70928215,836.78,835.05,2.98109633]
[1766659535667,0.88069587,837.05,835.05,2.98109633]
[1766659535866,0.70965375,837.04,835.05,2.98109633]
[1766659536071,0.70965375,837.03,835.05,2.98109633]
[1766659536371,0.70965375,837.02,835.06,2.98109633]
[1766659536672,0.70965375,837.01,835.06,2.98109633]
[1766659536871,0.70965375,837.0,835.06,2.98109633]
[1766659537068,0.70965375,836.99,835.06,2.98109633]
[1766659537269,0.70965375,836.98,835.06,2.98109633]
[1766659537474,0.70965375,836.97,835.06,2.98109633]
[1766659537673,0.70965375,836.96,835.06,2.98109633]
[1766659537874,0.70965375,836.95,835.06,2.98109633]
[1766659538071,0.70965375,836.94,835.06,2.98109633]
[1766659538374,0.70965375,836.93,835.06,2.98109633]
[1766659538574,0.70965375,836.92,835.07,2.98109633]
[1766659538773,0.70965375,836.91,835.07,2.98109633]
[1766659538975,0.70965375,836.9,835.07,2.98109633]
[1766659539172,0.70965375,836.89,835.07,2.98109633]
[1766659539371,0.70965375,836.88,835.07,2.98109633]
[1766659539571,0.70965375,836.87,835.08,2.98109633]
[1766659539774,0.70965375,836.86,835.08,2.98109633]
[1766659539974,0.70965375,836.85,835.08,2.98109633]
[1766659540172,0.70965375,836.84,835.08,2.98109633]
[1766659540377,0.70965375,836.83,835.08,2.98109633]
[1766659540674,0.70965375,836.82,835.09,2.98109633]
[1766659540875,0.70965375,836.81,835.09,2.98109633]
[1766659541076,0.70965375,836.8,835.11,2.98109633]
[1766659541274,0.70965375,836.79,835.11,2.98109633]
[1766659541479,0.70965375,836.78,835.11,2.98109633]
[1766659541777,0.70965375,836.77,835.12,2.98109633]
[1766659541974,0.70965375,836.76,835.12,2.98109633]
[1766659542279,0.70965375,836.75,835.12,2.98109633]
[1766659542577,0.70965375,836.74,835.14,2.98109633]
[1766659542875,0.70965375,836.73,835.14,2.98109633]
[1766659543079,0.88069587,836.99,835.14,2.98109633]
[1766659543280,1.59156914,836.98,835.14,2.98109633]
[1766659543576,0.71087327,836.97,835.14,2.98109633]
[1766659543775,0.71087327,836.96,835.15,2.98109633]
[1766659543979,0.71087327,836.95,835.15,2.98109633]
[1766659544180,0.71087327,836.94,835.18,2.98109633]
[1766659544378,0.71087327,836.93,835.18,2.98109633]
[1766659544578,0.71087327,836.92,835.18,2.98109633]
[1766659544775,0.71087327,836.91,835.18,2.98109633]
[1766659545076,0.71087327,836.9,835.18,2.98109633]
[1766659545276,0.71087327,836.89,835.18,2.98109633]
[1766659545478,0.71087327,836.88,835.18,2.98109633]
[1766659545676,0.71087327,836.87,835.18,2.98109633]
[1766659545879,0.71087327,836.86,835.18,2.98109633]
[1766659546176,0.71087327,836.85,835.18,2.98109633]
[1766659546478,0.71087327,836.84,835.18,2.98109633]
[1766659546680,0.71087327,836.83,835.18,2.98109633]
[1766659546876,0.71087327,836.82,835.27,2.98109633]
[1766659547081,0.71087327,836.81,835.27,2.98109633]
[1766659547281,0.71087327,836.8,835.28,2.98109633]
[1766659547480,0.71087327,836.79,835.28,2.98109633]
[1766659547681,0.71087327,836.78,835.28,2.98109633]
[1766659547980,0.71087327,836.77,835.28,2.98109633]
[1766659548175,0.71087327,836.76,835.28,2.98109633]
[1766659548380,0.71087327,836.75,835.3,2.98109633]
[1766659548580,0.71087327,836.74,835.3,2.98109633]
[1766659548781,0.88069587,837.01,835.3,2.98109633]
[1766659548981,0.71208895,837.0,835.3,2.98109633]
[1766659549181,0.71208895,836.99,835.3,2.98109633]
[1766659549381,0.71208895,836.98,835.31,2.98109633]
[1766659549580,0.71208895,836.97,835.31,2.98109633]
[1766659549776,0.71208895,836.96,835.31,2.98109633]
[1766659549976,0.88069587,837.0,835.31,2.98109633]
[1766659549977,0.71208895,836.95,835.31,2.98109633]
[1766659550181,0.71208895,836.94,835.31,2.98109633]
[1766659550381,0.71208895,836.93,835.31,2.98109633]
[1766659550578,0.71208895,836.92,835.31,2.98109633]
[1766659550779,0.71208895,836.91,835.31,2.98109633]
[1766659550982,0.71208895,836.9,835.35,2.98109633]
[1766659551178,0.71208895,836.89,835.35,2.98109633]
[1766659551379,0.71208895,836.88,835.35,2.98109633]
[1766659551682,0.71208895,836.87,835.37,2.98109633]
[1766659551882,0.71208895,836.86,835.37,2.98109633]
[1766659552083,0.71208895,836.85,835.4,2.98109633]
[1766659552283,0.71208895,836.84,835.4,2.98109633]
[1766659552483,0.88069587,837.11,835.39,2.98109633]
[1766659552679,0.71081887,837.1,835.39,2.98109633]
[1766659552886,0.71081887,837.09,835.39,2.98109633]
[1766659553085,0.71081887,837.08,835.39,2.98109633]
[1766659553282,0.71081887,837.07,835.39,2.98109633]
[1766659553581,0.71081887,837.06,835.38,2.98109633]
[1766659553781,0.71081887,837.05,835.38,2.98109633]
[1766659553984,0.71081887,837.04,835.38,2.98109633]
[1766659554185,0.71081887,837.03,835.38,2.98109633]
[1766659554386,0.71081887,837.02,835.38,2.98109633]
[1766659554587,0.71081887,837.01,835.38,2.98109633]
[1766659554787,0.71081887,837.0,835.38,2.98109633]
[1766659554988,0.71081887,836.99,835.38,2.98109633]
[1766659555288,0.71081887,836.98,835.38,2.98109633]
[1766659555486,0.71081887,836.97,835.38,2.98109633]
[1766659555684,0.71081887,836.96,835.38,2.98109633]
[1766659555887,0.71081887,836.95,835.38,2.98109633]
[1766659556088,0.71081887,836.94,835.38,2.98109633]
[1766659556289,0.71081887,836.93,835.37,2.98109633]
[1766659556488,0.71081887,836.92,835.37,2.98109633]
[1766659556689,0.71081887,836.91,835.32,2.98109633]
[1766659556887,0.71081887,836.9,835.32,2.98109633]
[1766659557087,0.71081887,836.89,835.32,2.98109633]
[1766659557391,0.71081887,836.88,835.32,2.98109633]
[1766659557589,0.71081887,836.87,835.32,2.98109633]
[1766659557790,0.71081887,836.86,835.32,2.98109633]
[1766659557991,0.71081887,836.85,835.32,2.98109633]
[1766659558292,0.71081887,836.84,835.32,2.98109633]
[1766659558486,0.71081887,836.83,835.32,2.98109633]
[1766659558690,0.71081887,836.82,835.32,2.98109633]
[1766659558888,0.88069587,837.08,835.32,2.98109633]
[1766659559193,0.71030982,837.07,835.32,2.98109633]
[1766659559393,0.71030982,837.06,835.31,2.98109633]
[1766659559688,0.71030982,837.05,835.31,2.98109633]
[1766659559890,0.71030982,837.04,835.31,2.98109633]
[1766659560088,0.71030982,837.03,835.31,2.98109633]
[1766659560291,0.71030982,837.02,835.31,2.98109633]
[1766659560490,0.71030982,837.01,835.31,2.98109633]
[1766659560689,0.71030982,837.0,835.31,2.98109633]
[1766659560992,0.71030982,836.99,835.31,2.98109633]
[1766659561189,0.71030982,836.98,835.31,2.98109633]
[1766659561392,0.71030982,836.97,835.31,2.98109633]
[1766659561589,0.71030982,836.96,835.31,2.98109633]
[1766659561794,0.71030982,836.95,835.31,2.98109633]
[1766659562094,0.71030982,836.94,835.31,2.98109633]
[1766659562388,0.71030982,836.93,835.31,2.98109633]
[1766659562590,0.71030982,836.92,835.31,2.98109633]
[1766659562795,0.71030982,836.91,835.31,2.98109633]
[1766659562995,0.71030982,836.9,835.31,2.98109633]
[1766659563194,0.71030982,836.89,835.31,2.98109633]
[1766659563392,0.71030982,836.88,835.31,2.98109633]
[1766659563610,0.71030982,836.87,835.3,2.98109633]
[1766659563792,0.71030982,836.86,835.3,2.98109633]
[1766659563995,0.71030982,836.85,835.3,2.98109633]
[1766659564195,0.71030982,836.84,835.3,2.98109633]
[1766659564496,0.88069587,837.11,835.31,2.98109633]
[1766659564792,0.71002354,837.1,835.31,2.98109633]
[1766659564995,0.71002354,837.09,835.31,2.98109633]
[1766659565196,0.71002354,837.08,835.31,2.98109633]
[1766659565396,0.71002354,837.07,835.31,2.98109633]
[1766659565598,0.71002354,837.06,835.31,2.98109633]
[1766659565797,0.71002354,837.05,835.31,2.98109633]
[1766659565995,0.71002354,837.04,835.31,2.98109633]
[1766659566295,0.71002354,837.03,835.31,2.98109633]
[1766659566594,0.71002354,837.02,835.31,2.98109633]
[1766659566801,0.71002354,837.01,835.31,2.98109633]
[1766659567101,0.71002354,837.0,835.31,2.98109633]
[1766659567299,0.71002354,836.99,835.31,2.98109633]
[1766659567500,0.71002354,836.98,835.31,2.98109633]
[1766659567700,0.71002354,836.97,835.3,2.98109633]
[1766659567900,0.71002354,836.96,835.3,2.98109633]
[1766659568200,0.71002354,836.95,835.3,2.98109633]
[1766659568500,0.71002354,836.94,835.3,2.98109633]
[1766659568699,0.88069587,837.11,835.3,2.98109633]
[1766659568700,0.71002354,836.93,835.3,2.98109633]
[1766659568900,0.71002354,836.92,835.3,2.98109633]
[1766659569201,0.71002354,836.91,835.31,2.98109633]
[1766659569398,0.71002354,836.9,835.31,2.98109633]
[1766659569603,0.71002354,836.89,835.31,2.98109633]
[1766659569805,0.71002354,836.88,835.33,2.98109633]
[1766659570003,0.71002354,836.87,835.33,2.98109633]
[1766659570303,0.88069587,837.14,835.33,2.98109633]
[1766659570504,0.70936495,837.13,835.33,2.98109633]
[1766659570805,0.70936495,837.12,835.33,2.98109633]
[1766659571103,0.88069587,837.14,835.33,2.98109633]
[1766659571104,0.70936495,837.11,835.33,2.98109633]
[1766659571300,0.70936495,837.1,835.33,2.98109633]
[1766659571603,0.70936495,837.09,835.33,2.98109633]
[1766659571803,0.70936495,837.08,835.33,2.98109633]
[1766659572000,0.70936495,837.07,835.33,2.98109633]
[1766659572202,0.70936495,837.06,835.33,2.98109633]
[1766659572402,0.88069587,837.14,835.33,2.98109633]
[1766659572403,0.70936495,837.05,835.33,2.98109633]
[1766659572600,0.70936495,837.04,835.33,2.98109633]
[1766659572903,0.70936495,837.03,835.33,2.98109633]
[1766659573101,0.70936495,837.02,835.33,2.98109633]
[1766659573403,0.70936495,837.01,835.33,2.98109633]
[1766659573603,0.70936495,837.0,835.33,2.98109633]
[1766659573801,0.70936495,836.99,835.33,2.98109633]
[1766659573999,0.70936495,836.98,835.33,2.98109633]
[1766659574204,0.70936495,836.97,835.33,2.98109633]
[1766659574504,0.70936495,836.96,835.33,2.98109633]
[1766659574804,0.70936495,836.95,835.33,2.98109633]
[1766659575005,0.70936495,836.94,835.33,2.98109633]
[1766659575205,0.70936495,836.93,835.33,2.98109633]
[1766659575504,0.70936495,836.92,835.36,2.98109633]
[1766659575698,0.70936495,836.91,835.36,2.98109633]
[1766659575901,0.88069587,837.18,835.36,2.98109633]
[1766659576102,0.70934528,837.17,835.36,2.98109633]
[1766659576304,0.70934528,837.16,835.36,2.98109633]
[1766659576606,0.70934528,837.15,835.36,2.98109633]
[1766659576906,0.70934528,837.14,835.36,2.98109633]
[1766659577101,0.70934528,837.13,835.36,2.98109633]
[1766659577404,0.70934528,837.12,835.36,2.98109633]
[1766659577606,0.70934528,837.11,835.36,2.98109633]
[1766659577803,0.70934528,837.1,835.36,2.98109633]
[1766659578006,0.70934528,837.09,835.36,2.98109633]
[1766659578202,0.70934528,837.08,835.36,2.98109633]
[1766659578406,0.70934528,837.07,835.36,2.98109633]
[1766659578607,0.70934528,837.06,835.36,2.98109633]
[1766659578804,0.70934528,837.05,835.36,2.98109633]
[1766659579003,0.70934528,837.04,835.36,2.98109633]
[1766659579207,0.70934528,837.03,835.36,2.98109633]
[1766659579409,0.70934528,837.02,835.36,2.98109633]
[1766659579704,0.88069587,837.18,835.36,2.98109633]
[1766659579705,0.70934528,837.01,835.36,2.98109633]
[1766659579907,0.70934528,837.0,835.36,2.98109633]
[1766659580206,0.70934528,836.99,835.36,2.98109633]
[1766659580509,0.70934528,836.98,835.36,2.98109633]
[1766659580705,0.70934528,836.97,835.37,2.98109633]
[1766659580910,0.70934528,836.96,835.37,2.98109633]
[1766659581111,0.70934528,836.95,835.37,2.98109633]
[1766659581310,0.70934528,836.94,835.37,2.98109633]
[1766659581507,0.70934528,836.93,835.37,2.98109633]
[1766659581712,0.70934528,836.92,835.37,2.98109633]
[1766659581908,0.70934528,836.91,835.37,2.98109633]
[1766659582111,0.88069587,837.18,835.37,2.98109633]
[1766659582415,0.70845772,837.17,835.37,2.98109633]
[1766659582711,0.70845772,837.16,835.37,2.98109633]
[1766659582911,0.70845772,837.15,835.37,2.98109633]
[1766659583212,0.70845772,837.14,835.37,2.98109633]
[1766659583414,0.70845772,837.13,835.37,2.98109633]
[1766659583719,0.70845772,837.12,835.37,2.98109633]
[1766659583914,0.70845772,837.11,835.37,2.98109633]
[1766659584115,0.70845772,837.1,835.37,2.98109633]
[1766659584312,0.70845772,837.09,835.37,2.98109633]
[1766659584517,0.70845772,837.08,835.37,2.98109633]
[1766659584714,0.70845772,837.07,835.37,2.98109633]
[1766659584918,0.70845772,837.06,835.37,2.98109633]
[1766659585214,0.70845772,837.05,835.37,2.98109633]
[1766659585415,0.70845772,837.04,835.37,2.98109633]
[1766659585614,0.70845772,837.03,835.37,2.98109633]
[1766659585815,0.70845772,837.02,835.37,2.98109633]
[1766659586014,0.70845772,837.01,835.37,2.98109633]
[1766659586216,0.70845772,837.0,835.37,2.98109633]
[1766659586418,0.70845772,836.99,835.37,2.98109633]
[1766659586615,0.70845772,836.98,835.38,2.98109633]
[1766659586914,0.88069587,837.17,835.38,2.98109633]
[1766659586915,0.70845772,836.97,835.38,2.98109633]
[1766659587119,0.70845772,836.96,835.38,2.98109633]
[1766659587316,0.70845772,836.95,835.38,2.98109633]
[1766659587520,0.70845772,836.94,835.38,2.98109633]
[1766659587822,0.70845772,836.93,835.38,2.98109633]
[1766659588118,0.70845772,836.92,835.38,2.98109633]
[1766659588321,0.70845772,836.91,835.38,2.98109633]
[1766659588524,0.70845772,836.9,835.38,2.98109633]
[1766659588819,0.88069587,837.17,835.38,2.98109633]
[1766659589123,0.70877607,837.16,835.39,2.98109633]
[1766659589419,0.70877607,837.15,835.39,2.98109633]
[1766659589626,0.70877607,837.14,835.4,2.98109633]
[1766659589819,0.70877607,837.13,835.4,2.98109633]
[1766659590021,0.70877607,837.12,835.4,2.98109633]
[1766659590225,0.70877607,837.11,835.4,2.98109633]
[1766659590421,0.70877607,837.1,835.4,2.98109633]
[1766659590721,0.70877607,837.09,835.4,2.98109633]
[1766659590923,0.70877607,837.08,835.4,2.98109633]
[1766659591222,0.70877607,837.07,835.41,2.98109633]
[1766659591425,0.70877607,837.06,835.41,2.98109633]
[1766659591624,0.70877607,837.05,835.41,2.98109633]
[1766659591927,0.70877607,837.04,835.41,2.98109633]
[1766659592229,0.70877607,837.03,835.41,2.98109633]
[1766659592524,0.70877607,837.02,835.41,2.98109633]
[1766659592828,0.70877607,837.01,835.43,2.98109633]
[1766659593024,0.70877607,837.0,835.43,2.98109633]
[1766659593225,0.70877607,836.99,835.43,2.98109633]
[1766659593423,0.70877607,836.98,835.43,2.98109633]
[1766659593625,0.70877607,836.97,835.43,2.98109633]
[1766659593829,0.70877607,836.96,835.43,2.98109633]
[1766659594028,0.70877607,836.95,835.43,2.98109633]
[1766659594328,0.70877607,836.94,835.43,2.98109633]
[1766659594530,0.70877607,836.93,835.43,2.98109633]
[1766659594726,0.70877607,836.92,835.43,2.98109633]
[1766659595024,0.70877607,836.91,835.43,2.98109633]
[1766659595225,0.70877607,836.9,835.43,2.98109633]
[1766659595427,0.70877607,836.89,835.44,2.98109633]
[1766659595629,0.88069587,837.16,835.44,2.98109633]
[1766659595828,0.70890354,837.15,835.44,2.98109633]
[1766659596030,0.70890354,837.14,835.44,2.98109633]
[1766659596330,0.70890354,837.13,835.44,2.98109633]
[1766659596629,0.70890354,837.12,835.44,2.98109633]
[1766659596828,0.70890354,837.11,835.46,2.98109633]
[1766659597132,0.70890354,837.1,835.46,2.98109633]
[1766659597331,0.70890354,837.09,835.46,2.98109633]
[1766659597526,0.70890354,837.08,835.46,2.98109633]
[1766659597731,0.70890354,837.07,835.46,2.98109633]
[1766659597928,0.70890354,837.06,835.46,2.98109633]
[1766659598231,0.70890354,837.05,835.46,2.98109633]
[1766659598431,0.70890354,837.04,835.46,2.98109633]
[1766659598727,0.70890354,837.03,835.46,2.98109633]
[1766659598931,0.70890354,837.02,835.46,2.98109633]
[1766659599130,0.70890354,837.01,835.46,2.98109633]
[1766659599432,0.70890354,837.0,835.46,2.98109633]
[1766659599629,0.70890354,836.99,835.46,2.98109633]
[1766659599832,0.70890354,836.98,835.46,2.98109633]
[1766659600030,0.88069587,837.18,835.46,2.98109633]
[1766659600031,0.70890354,836.97,835.46,2.98109633]
[1766659600230,0.70890354,836.96,835.46,2.98109633]
[1766659600434,0.70890354,836.95,835.46,2.98109633]
[1766659600634,0.70890354,836.94,835.46,2.98109633]
[1766659600835,0.70890354,836.93,835.46,2.98109633]
[1766659601135,0.70890354,836.92,835.46,2.98109633]
[1766659601431,0.70890354,836.91,835.46,2.98109633]
[1766659601634,0.88069587,837.18,835.46,2.98109633]
[1766659601835,1.5896534,837.17,835.46,2.98109633]
[1766659602036,0.70895753,837.16,835.46,2.98109633]
[1766659602236,0.70895753,837.15,835.46,2.98109633]
[1766659602532,0.70895753,837.14,835.46,2.98109633]
[1766659602735,0.70895753,837.13,835.46,2.98109633]
[1766659602935,0.70895753,837.12,835.46,2.98109633]
[1766659603137,0.70895753,837.11,835.46,2.98109633]
[1766659603334,0.70895753,837.1,835.46,2.98109633]
[1766659603538,0.70895753,837.09,835.46,2.98109633]
[1766659603736,0.70895753,837.08,835.46,2.98109633]
[1766659604035,0.70895753,837.07,835.46,2.98109633]
[1766659604239,0.70895753,837.06,835.46,2.98109633]
[1766659604435,0.70895753,837.05,835.46,2.98109633]
[1766659604644,0.70895753,837.04,835.46,2.98109633]
[1766659604935,0.70895753,837.03,835.46,2.98109633]
[1766659605138,0.70895753,837.02,835.46,2.98109633]
[1766659605340,0.70895753,837.01,835.46,2.98109633]
[1766659605534,0.70895753,837.0,835.46,2.98109633]
[1766659605738,0.70895753,836.99,835.46,2.98109633]
[1766659605939,0.70895753,836.98,835.46,2.98109633]
[1766659606136,0.70895753,836.97,835.46,2.98109633]
[1766659606439,0.70895753,836.96,835.46,2.98109633]
[1766659606641,0.70895753,836.95,835.46,2.98109633]
[1766659606941,0.70895753,836.94,835.41,2.98109633]
[1766659607240,0.70895753,836.93,835.36,2.98109633]
[1766659607441,0.70895753,836.92,835.36,2.98109633]
[1766659607643,0.70895753,836.91,835.36,2.98109633]
[1766659607840,0.70895753,836.9,835.36,2.98109633]
[1766659608043,0.70895753,836.89,835.36,2.98109633]
[1766659608242,0.70895753,836.88,835.36,2.98109633]
[1766659608443,0.70895753,836.87,835.36,2.98109633]
[1766659608643,0.70895753,836.86,835.36,2.98109633]
[1766659608844,0.70895753,836.85,835.36,2.98109633]
[1766659609142,0.70895753,836.84,835.36,2.98109633]
[1766659609341,0.70895753,836.83,835.36,2.98109633]
[1766659609646,0.70895753,836.82,835.36,2.98109633]
[1766659609845,0.70895753,836.81,835.36,2.98109633]
[1766659610042,0.70895753,836.8,835.36,2.98109633]
[1766659610246,0.88069587,837.06,835.36,2.98109633]
[1766659610546,0.70898697,837.05,835.36,2.98109633]
[1766659610746,0.70898697,837.04,835.36,2.98109633]
[1766659610941,0.70898697,837.03,835.36,2.98109633]
[1766659611142,0.70898697,837.02,835.36,2.98109633]
[1766659611344,0.70898697,837.01,835.36,2.98109633]
[1766659611542,0.70898697,837.0,835.36,2.98109633]
[1766659611742,0.70898697,836.99,835.36,2.98109633]
[1766659611943,0.70898697,836.98,835.36,2.98109633]
[1766659612143,0.70898697,836.97,835.36,2.98109633]
[1766659612342,0.70898697,836.96,835.36,2.98109633]
[1766659612543,0.70898697,836.95,835.36,2.98109633]
[1766659612744,0.70898697,836.94,835.36,2.98109633]
[1766659612947,0.70898697,836.93,835.36,2.98109633]
[1766659613248,0.70898697,836.92,835.36,2.98109633]
[1766659613443,0.70898697,836.91,835.36,2.98109633]
[1766659613648,0.70898697,836.9,835.36,2.98109633]
[1766659613944,0.70898697,836.89,835.36,2.98109633]
[1766659614149,0.70898697,836.88,835.36,2.98109633]
[1766659614350,0.70898697,836.87,835.36,2.98109633]
[1766659614549,0.70898697,836.86,835.36,2.98109633]
[1766659614751,0.70898697,836.85,835.36,2.98109633]
[1766659615050,0.70898697,836.84,835.36,2.98109633]
[1766659615250,0.70898697,836.83,835.36,2.98109633]
[1766659615550,0.70898697,836.82,835.36,2.98109633]
[1766659615750,0.70898697,836.81,835.36,2.98109633]
[1766659615950,0.70898697,836.8,835.36,2.98109633]
[1766659616147,0.70898697,836.79,835.36,2.98109633]
[1766659616347,0.88069587,837.06,835.36,2.98109633]
[1766659616648,1.58853438,837.05,835.34,2.98109633]
[1766659616847,0.70783851,837.04,835.34,2.98109633]
[1766659617052,0.70783851,837.03,835.34,2.98109633]
[1766659617250,0.70783851,837.02,835.34,2.98109633]
[1766659617451,0.70783851,837.01,835.34,2.98109633]
[1766659617652,0.70783851,837.0,835.34,2.98109633]
[1766659617845,0.70783851,836.99,835.34,2.98109633]
[1766659618147,0.70783851,836.98,835.34,2.98109633]
[1766659618351,0.70783851,836.97,835.34,2.98109633]
[1766659618646,0.70783851,836.96,835.34,2.98109633]
[1766659618848,0.70783851,836.95,835.34,2.98109633]
[1766659619047,0.70783851,836.94,835.34,2.98109633]
[1766659619251,0.70783851,836.93,835.34,2.98109633]
[1766659619449,0.70783851,836.92,835.34,2.98109633]
[1766659619652,0.70783851,836.91,835.34,2.98109633]
[1766659619949,0.70783851,836.9,835.33,2.98109633]
[1766659620152,0.70783851,836.89,835.33,2.98109633]
[1766659620452,0.70783851,836.88,835.33,2.98109633]
[1766659620647,0.70783851,836.87,835.33,2.98109633]
[1766659620947,0.70783851,836.86,835.28,2.98109633]
[1766659621149,0.70783851,836.85,835.28,2.98109633]
[1766659621353,0.70783851,836.84,835.16,2.98109633]
[1766659621654,0.70783851,836.83,835.16,2.98109633]
[1766659621854,0.70783851,836.82,835.15,2.98109633]
[1766659622055,0.70783851,836.81,835.15,2.98109633]
[1766659622250,0.70783851,836.8,835.15,2.98109633]
[1766659622456,0.70783851,836.79,835.14,2.98109633]
[1766659622755,0.70783851,836.78,835.14,2.98109633]
[1766659622955,0.70783851,836.77,835.12,2.98109633]
[1766659623252,0.70783851,836.76,835.12,2.98109633]
[1766659623450,0.70783851,836.75,835.11,2.98109633]
[1766659623654,0.70783851,836.74,835.11,2.98109633]
[1766659623852,0.70783851,836.73,835.11,2.98109633]
[1766659624054,0.70783851,836.72,835.12,2.98109633]
[1766659624256,0.70783851,836.71,835.12,2.98109633]
[1766659624551,0.70783851,836.71,834.85,0.20797973]
[1766659624552,0.70783851,836.7,835.11,2.98109633]
[1766659624757,0.70783851,836.69,835.11,2.98109633]
[1766659624959,0.70783851,836.68,835.1,2.98109633]
[1766659625254,0.70783851,836.67,835.1,2.98109633]
[1766659625453,0.20796233,837.22,835.09,2.98109633]
[1766659625454,0.88069587,836.94,835.09,2.98109633]
[1766659625656,0.70656234,836.93,835.09,2.98109633]
[1766659625854,0.70656234,836.92,835.09,2.98109633]